bitfinex/quotes_BTCUSD_20230115
["timestamp","ask_amount","ask_price","bid_price","bid_amount"]
[1673782021107,0.001,20718.0,20717.0,2.39792835]
[1673782021390,0.001,20718.0,20717.0,2.09792835]
[1673782021650,0.001,20718.0,20717.0,2.38691423]
[1673782021905,0.001,20718.0,20717.0,2.24325259]
[1673782022154,0.001,20718.0,20717.0,1.95426671]
[1673782024345,0.001,20718.0,20717.0,2.24325259]
[1673782025169,0.001,20718.0,20717.0,1.95426671]
[1673782025417,0.001,20718.0,20717.0,2.24325259]
[1673782025663,0.001,20718.0,20717.0,2.24323313]
[1673782025936,0.001,20718.0,20717.0,2.0265051]
[1673782026182,0.001,20718.0,20717.0,2.24323363]
[1673782026449,0.001,20718.0,20717.0,2.3265051]
[1673782026717,0.001,20718.0,20717.0,2.54323372]
[1673782026915,0.001,20718.0,20717.0,2.38798377]
[1673782027157,0.001,20718.0,20717.0,2.0265051]
[1673782027404,0.001,20718.0,20717.0,2.24323365]
[1673782027657,0.001,20718.0,20717.0,1.95424777]
[1673782028672,0.001,20718.0,20717.0,2.25424777]
[1673782028911,0.00093422,20718.0,20717.0,2.54323365]
[1673782029154,0.00093422,20718.0,20717.0,2.25424777]
[1673782029418,0.00093422,20718.0,20717.0,1.78524127]
[1673782029671,0.00093422,20718.0,20717.0,2.67647869]
[1673782029918,0.00093422,20718.0,20717.0,2.38749281]
[1673782031787,0.0008571,20718.0,20717.0,2.38749281]
[1673782031970,0.87230627,20722.0,20718.0,0.1]
[1673782032219,0.4701,20722.0,20719.0,1.3264628]
[1673782032711,0.4701,20722.0,20719.0,1.10975792]
[1673782032966,0.4701,20722.0,20719.0,1.3264628]
[1673782033748,0.49914241,20723.0,20719.0,1.3264628]
[1673782034022,0.49914241,20723.0,20719.0,1.4134628]
[1673782034272,0.49914241,20723.0,20720.0,0.40522713]
[1673782034509,0.49914241,20723.0,20721.0,0.482602]
[1673782035002,0.49914241,20723.0,20721.0,0.965204]
[1673782035246,0.21593421,20725.0,20721.0,0.965204]
[1673782035490,0.52532117,20724.0,20721.0,0.965204]
[1673782035740,0.321262,20723.0,20721.0,0.965204]
[1673782036025,0.52532117,20724.0,20721.0,0.965204]
[1673782036279,0.52532117,20724.0,20721.0,1.048204]
[1673782036544,0.52532117,20724.0,20721.0,0.965204]
[1673782036812,0.52532117,20724.0,20721.0,1.47928763]
[1673782037290,0.52532117,20724.0,20722.0,0.3599471]
[1673782038064,0.38120713,20724.0,20722.0,0.3599471]
[1673782038606,0.38120713,20724.0,20722.0,0.8425211]
[1673782038855,0.38120713,20724.0,20722.0,0.8535211]
[1673782039416,0.01008621,20724.0,20722.0,0.8535211]
[1673782039672,0.01008621,20724.0,20723.0,0.49662038]
[1673782039931,0.01008621,20724.0,20723.0,0.97917538]
[1673782041216,0.01008621,20724.0,20723.0,1.46173038]
[1673782042216,0.01508621,20724.0,20723.0,1.46473038]
[1673782049785,0.01008621,20724.0,20723.0,1.46173038]
[1673782050046,0.01008621,20724.0,20723.0,1.9932003]
[1673782050300,0.04451521,20724.0,20723.0,1.9932003]
[1673782050822,0.04451521,20724.0,20723.0,1.9062003]
[1673782051089,0.04451521,20724.0,20723.0,1.9942003]
[1673782051353,0.04451521,20724.0,20723.0,1.6062003]
[1673782051609,0.04451521,20724.0,20723.0,1.54873038]
[1673782051866,0.04451521,20724.0,20723.0,1.46173038]
[1673782052140,0.49138065,20724.0,20723.0,1.05311]
[1673782052425,0.49138065,20724.0,20723.0,0.482555]
[1673782052677,0.81264265,20724.0,20723.0,0.569555]
[1673782052941,0.49138065,20724.0,20723.0,0.482555]
[1673782053188,0.04451521,20724.0,20723.0,0.482555]
[1673782053733,0.40910838,20724.0,20723.0,0.482555]
[1673782053986,0.40910838,20724.0,20723.0,0.570555]
[1673782054246,0.40910838,20724.0,20723.0,0.088]
[1673782054766,0.73037038,20724.0,20723.0,0.088]
[1673782056339,0.73030411,20724.0,20723.0,0.088]
[1673782058711,1.83972575,20724.0,20723.0,0.088]
[1673782059249,0.87441815,20724.0,20723.0,0.088]
[1673782059753,0.73030411,20724.0,20723.0,0.088]
[1673782060554,0.87441815,20724.0,20723.0,0.088]
[1673782061635,1.83972495,20724.0,20723.0,0.088]
[1673782062634,0.87441815,20724.0,20723.0,0.088]
[1673782063093,0.73030411,20724.0,20723.0,0.088]
[1673782063624,0.87441815,20724.0,20723.0,0.088]
[1673782064135,1.83972134,20724.0,20723.0,0.088]
[1673782064394,0.73030411,20724.0,20723.0,0.088]
[1673782068460,1.83970858,20724.0,20723.0,0.088]
[1673782070836,2.05564279,20724.0,20723.0,0.088]
[1673782071087,1.83970858,20724.0,20723.0,0.088]
[1673782072097,2.05564279,20724.0,20723.0,0.088]
[1673782072649,2.36430757,20724.0,20723.0,0.088]
[1673782072939,2.36430757,20724.0,20723.0,1e-08]
[1673782072940,3.72021366,20724.0,20723.0,1e-08]
[1673782073243,3.65956855,20724.0,20723.0,1e-08]
[1673782073501,3.35956855,20724.0,20717.0,1.32942059]
[1673782073751,0.14450294,20721.0,20717.0,1.18495067]
[1673782074000,0.51198795,20720.0,20717.0,1.18495067]
[1673782074256,0.19072595,20720.0,20717.0,0.70225967]
[1673782074811,0.36125735,20721.0,20717.0,0.70225967]
[1673782075059,0.5519833,20721.0,20717.0,0.48413195]
[1673782075312,0.321262,20720.0,20717.0,0.48413195]
[1673782075574,0.69622043,20719.0,20717.0,0.48413195]
[1673782075850,0.48085043,20719.0,20717.0,0.62860187]
[1673782076347,0.01,20720.0,20718.0,0.10107949]
[1673782076612,0.14450294,20722.0,20718.0,0.10107949]
[1673782076880,0.01,20719.0,20718.0,0.58287985]
[1673782077157,0.321262,20719.0,20718.0,0.58287985]
[1673782077396,0.48805423,20720.0,20718.0,0.58287985]
[1673782078492,1.39150417,20724.0,20719.0,0.50189653]
[1673782078493,0.55753374,20724.0,20719.0,0.50189653]
[1673782078674,0.006,20720.0,20719.0,1.08498285]
[1673782078924,0.006,20720.0,20719.0,2.09429145]
[1673782079170,0.46963438,20723.0,20719.0,2.09429145]
[1673782079678,0.44012283,20722.0,20719.0,1.94982153]
[1673782079944,0.44012283,20722.0,20719.0,2.09429145]
[1673782080190,0.44012283,20722.0,20719.0,1.94982153]
[1673782080749,0.44012283,20722.0,20720.0,0.37126114]
[1673782081300,0.44012283,20722.0,20721.0,0.965204]
[1673782081561,0.43990683,20722.0,20721.0,0.482602]
[1673782082082,0.47490683,20722.0,20721.0,0.482602]
[1673782082359,0.43990683,20722.0,20721.0,0.482602]
[1673782082615,0.53090683,20722.0,20721.0,0.482602]
[1673782082879,0.53090683,20722.0,20720.0,0.85387314]
[1673782083138,0.43990683,20722.0,20720.0,0.85387314]
[1673782083685,0.44590683,20722.0,20720.0,0.85387314]
[1673782084507,0.43990683,20722.0,20721.0,0.10025519]
[1673782084775,0.44990683,20722.0,20721.0,0.10025519]
[1673782085050,0.43990683,20722.0,20721.0,0.10025519]
[1673782085308,0.44990683,20722.0,20721.0,0.10025519]
[1673782085566,0.44990683,20722.0,20721.0,0.00024519]
[1673782085830,0.45590683,20722.0,20721.0,0.00024519]
[1673782086661,0.45590683,20722.0,20721.0,0.10025519]
[1673782086917,0.016,20722.0,20721.0,1.01568124]
[1673782087729,0.016,20722.0,20721.0,1.49828324]
[1673782089332,0.04444894,20724.0,20721.0,1.49828324]
[1673782089587,0.006,20722.0,20721.0,1.49828324]
[1673782089875,0.04444894,20724.0,20721.0,1.49828324]
[1673782091422,0.04444894,20724.0,20722.0,0.43926896]
[1673782091669,0.04444894,20724.0,20723.0,0.96511]
[1673782092175,0.05044894,20724.0,20723.0,0.96511]
[1673782092726,0.04444894,20724.0,20723.0,0.96511]
[1673782092978,0.13444894,20724.0,20723.0,0.96511]
[1673782093489,0.13444894,20724.0,20723.0,1.10957992]
[1673782094021,0.13444894,20724.0,20723.0,1.34324852]
[1673782094532,0.13444894,20724.0,20723.0,0.96511]
[1673782094533,0.13444894,20724.0,20723.0,1.10957992]
[1673782094814,0.13444894,20724.0,20723.0,1.54819632]
[1673782095082,0.13444894,20724.0,20723.0,1.40957992]
[1673782095871,0.13444894,20724.0,20723.0,1.10957992]
[1673782096128,0.13444894,20724.0,20723.0,1.84819632]
[1673782096391,0.13444894,20724.0,20723.0,2.0649012]
[1673782096658,0.13444894,20724.0,20723.0,1.40957992]
[1673782097734,0.04444894,20724.0,20723.0,1.40957992]
[1673782097994,0.05244894,20724.0,20723.0,2.34289801]
[1673782098268,0.04444894,20724.0,20723.0,2.55060289]
[1673782098521,0.05244894,20724.0,20723.0,2.41513297]
[1673782098780,0.05244894,20724.0,20723.0,2.55922806]
[1673782099038,0.04444894,20724.0,20723.0,2.55023531]
[1673782099641,0.05244894,20724.0,20723.0,2.55923531]
[1673782100436,0.05244894,20724.0,20723.0,2.70407281]
[1673782100729,0.04444894,20724.0,20723.0,2.55021112]
[1673782101037,0.05244894,20724.0,20723.0,2.34250624]
[1673782101293,0.04444894,20724.0,20723.0,2.33350624]
[1673782101547,0.05244894,20724.0,20723.0,2.34250624]
[1673782101797,0.05244894,20724.0,20723.0,2.55921112]
[1673782102469,0.05244894,20724.0,20723.0,2.41513297]
[1673782102470,0.05244894,20724.0,20723.0,2.55913013]
[1673782102690,0.01170651,20726.0,20724.0,0.1]
[1673782102906,0.01170651,20726.0,20725.0,2.08649922]
[1673782103123,0.01170651,20726.0,20725.0,2.38649922]
[1673782103787,0.01170651,20726.0,20725.0,2.40249922]
[1673782103788,0.01970651,20726.0,20725.0,2.40249922]
[1673782104461,0.01970651,20726.0,20725.0,2.87970091]
[1673782106304,0.01970651,20726.0,20725.0,2.87994606]
[1673782106530,0.01970651,20726.0,20725.0,2.44317384]
[1673782106760,0.01970651,20726.0,20725.0,2.79813323]
[1673782107203,0.01970651,20726.0,20725.0,1.92724154]
[1673782107457,0.01970651,20726.0,20725.0,1.91874154]
[1673782107861,0.01970651,20726.0,20725.0,1.81873154]
[1673782108996,0.01970651,20726.0,20725.0,2.15498071]
[1673782109912,0.01970651,20726.0,20725.0,1.85498071]
[1673782111075,0.01970651,20726.0,20725.0,2.15498071]
[1673782112461,0.01970651,20726.0,20725.0,1.37222656]
[1673782114703,0.01970651,20726.0,20725.0,0.981018]
[1673782114938,0.44344872,20726.0,20725.0,0.981018]
[1673782115191,0.44344872,20726.0,20725.0,0.016]
[1673782116589,0.76471072,20726.0,20725.0,0.016]
[1673782116802,0.75671072,20726.0,20724.0,0.482527]
[1673782117024,0.21537,20725.0,20723.0,0.98183893]
[1673782117253,0.41868864,20725.0,20723.0,0.98183893]
[1673782118214,0.42668864,20725.0,20723.0,0.496555]
[1673782118437,0.46074475,20724.0,20723.0,0.496555]
[1673782119625,0.46074475,20724.0,20723.0,0.482555]
[1673782119844,0.46874475,20724.0,20723.0,0.014]
[1673782121070,0.46074475,20724.0,20722.0,0.482562]
[1673782121300,0.49474475,20724.0,20723.0,0.002]
[1673782121975,0.034,20724.0,20723.0,0.10201]
[1673782123104,0.06048745,20724.0,20723.0,0.10201]
[1673782124015,0.06048745,20724.0,20723.0,0.002]
[1673782124231,0.06040116,20724.0,20723.0,0.002]
[1673782125479,0.06040116,20724.0,20723.0,1.07916698]
[1673782125737,0.06040116,20724.0,20723.0,1.07072625]
[1673782125993,0.06040116,20724.0,20723.0,1.55328125]
[1673782126498,0.06040116,20724.0,20723.0,1.99722426]
[1673782126752,0.02648745,20724.0,20723.0,1.99522426]
[1673782127007,0.06048745,20724.0,20723.0,1.99722426]
[1673782127274,0.034,20724.0,20723.0,1.99722426]
[1673782127805,0.034,20724.0,20723.0,1.97762389]
[1673782128047,0.034,20724.0,20723.0,1.88927323]
[1673782128334,0.034,20724.0,20723.0,1.6678582]
[1673782128587,0.034,20724.0,20723.0,1.18169695]
[1673782128862,0.034,20724.0,20723.0,1.84339866]
[1673782129138,0.034,20724.0,20723.0,1.98710291]
[1673782129665,0.034,20724.0,20723.0,1.69816307]
[1673782130493,0.01170651,20726.0,20723.0,2.09141758]
[1673782130755,0.41309405,20726.0,20724.0,0.36033854]
[1673782131017,0.41309405,20726.0,20725.0,1.447527]
[1673782131840,0.01870651,20726.0,20725.0,1.447527]
[1673782132889,0.01170651,20726.0,20725.0,1.447527]
[1673782133390,0.01970651,20726.0,20725.0,1.465527]
[1673782133656,0.01970651,20726.0,20725.0,2.10481708]
[1673782133902,0.01970651,20726.0,20725.0,2.32102029]
[1673782134154,0.01970651,20726.0,20725.0,2.62102029]
[1673782134394,0.01170651,20726.0,20725.0,2.60302029]
[1673782134880,0.01970651,20726.0,20725.0,2.32102029]
[1673782135157,0.01970651,20726.0,20725.0,2.10481708]
[1673782135423,0.01970651,20726.0,20725.0,1.96062521]
[1673782136148,0.01970651,20726.0,20725.0,2.3209909]
[1673782136646,0.01970651,20726.0,20725.0,2.6209909]
[1673782137168,0.01970651,20726.0,20725.0,2.40478769]
[1673782137425,0.01970651,20726.0,20725.0,2.6209909]
[1673782138955,0.01970651,20726.0,20725.0,2.3209909]
[1673782139232,0.01970651,20726.0,20725.0,2.60309438]
[1673782139532,0.02747045,20728.0,20725.0,3.02196677]
[1673782139726,0.01235032,20731.0,20725.0,3.02196677]
[1673782139727,0.01235032,20731.0,20727.0,0.50434062]
[1673782139977,0.01235032,20731.0,20730.0,0.1440626]
[1673782140228,0.01235032,20731.0,20730.0,1.5912386]
[1673782140817,0.01235032,20731.0,20730.0,1.447176]
[1673782141015,0.01235032,20731.0,20730.0,1.540176]
[1673782141270,0.10604032,20731.0,20730.0,1.93596952]
[1673782141521,0.2981814,20731.0,20730.0,0.093]
[1673782141777,0.77314031,20731.0,20730.0,0.093]
[1673782142039,0.77314031,20731.0,20727.0,0.33243335]
[1673782142292,0.21537,20730.0,20727.0,0.81489235]
[1673782142555,0.45187831,20731.0,20727.0,0.81489235]
[1673782142801,0.45187831,20731.0,20730.0,0.078]
[1673782142802,0.64260426,20731.0,20730.0,0.078]
[1673782143066,0.77314031,20731.0,20728.0,0.40965474]
[1673782143322,0.68062453,20730.0,20728.0,0.40965474]
[1673782143554,0.46525453,20730.0,20728.0,0.40965474]
[1673782144616,0.46525453,20730.0,20728.0,0.89208974]
[1673782145351,0.46525453,20730.0,20728.0,1.37852874]
[1673782145628,0.01935032,20731.0,20728.0,1.37852874]
[1673782145929,0.36489703,20730.0,20728.0,1.38252874]
[1673782146120,0.007,20730.0,20729.0,0.45236699]
[1673782146367,0.007,20730.0,20729.0,0.93478199]
[1673782146633,0.00141513,20730.0,20729.0,0.93478199]
[1673782146927,0.50997437,20731.0,20729.0,0.93478199]
[1673782147182,0.01335032,20731.0,20729.0,0.92978199]
[1673782147424,0.01235032,20731.0,20729.0,0.92978199]
[1673782148209,0.01235032,20731.0,20729.0,1.41219699]
[1673782148514,0.01235032,20731.0,20729.0,1.41919699]
[1673782148761,0.321262,20730.0,20729.0,1.41219699]
[1673782149010,0.01235032,20731.0,20729.0,1.41219699]
[1673782149769,0.321262,20730.0,20729.0,1.41219699]
[1673782150029,0.01235032,20731.0,20729.0,1.41219699]
[1673782150567,0.321262,20730.0,20729.0,1.41919699]
[1673782150860,0.00141513,20730.0,20729.0,1.41919699]
[1673782151153,0.44616611,20731.0,20729.0,1.41919699]
[1673782151407,0.44616611,20731.0,20729.0,1.41219699]
[1673782151657,0.44616611,20731.0,20729.0,1.41919699]
[1673782151914,0.321262,20730.0,20729.0,1.41919699]
[1673782152174,0.35976639,20730.0,20729.0,0.482415]
[1673782152477,0.68102839,20730.0,20729.0,0.007]
[1673782152735,0.57513639,20730.0,20728.0,0.94496251]
[1673782152988,0.321262,20729.0,20728.0,0.94496251]
[1673782153243,0.35976639,20730.0,20728.0,0.94496251]
[1673782153784,0.01235032,20731.0,20729.0,0.41769248]
[1673782154060,0.01235032,20731.0,20729.0,0.90009148]
[1673782155145,0.01235032,20731.0,20729.0,0.971814]
[1673782155409,0.01235032,20731.0,20729.0,1.40858622]
[1673782155679,0.01235032,20731.0,20729.0,1.88441074]
[1673782155939,0.01235032,20731.0,20729.0,1.47958622]
[1673782156192,0.01235032,20731.0,20729.0,1.83345866]
[1673782156676,0.01235032,20731.0,20730.0,0.35284497]
[1673782156939,0.01235032,20731.0,20730.0,1.31762897]
[1673782158232,0.01335032,20731.0,20730.0,1.40362897]
[1673782158496,0.01235032,20731.0,20730.0,1.31762897]
[1673782158784,0.01235032,20731.0,20730.0,1.32462897]
[1673782159075,0.01235032,20731.0,20730.0,1.32487406]
[1673782159331,0.01235032,20731.0,20730.0,1.31762897]
[1673782160121,0.01335032,20731.0,20730.0,1.70362897]
[1673782160391,0.01376545,20731.0,20730.0,0.964784]
[1673782160648,0.44468675,20731.0,20730.0,0.971784]
[1673782160910,0.44327162,20731.0,20730.0,0.964784]
[1673782161163,0.44427162,20731.0,20730.0,1.050784]
[1673782161431,0.01235032,20731.0,20730.0,0.964784]
[1673782161696,0.01235032,20731.0,20730.0,0.971784]
[1673782161931,0.01235032,20731.0,20730.0,0.964784]
[1673782162214,0.01935032,20731.0,20730.0,0.968784]
[1673782164636,0.01235032,20731.0,20730.0,0.964784]
[1673782164924,0.01235032,20731.0,20730.0,0.971784]
[1673782166265,0.39568325,20731.0,20730.0,0.971784]
[1673782166793,0.01235032,20731.0,20730.0,0.964784]
[1673782167080,0.01235032,20731.0,20730.0,1.271784]
[1673782167344,0.01235032,20731.0,20730.0,1.74798403]
[1673782167598,0.01235032,20731.0,20730.0,1.52290113]
[1673782167866,0.20307627,20731.0,20730.0,1.65668325]
[1673782168126,0.01235032,20731.0,20730.0,0.971784]
[1673782168399,0.01235032,20731.0,20730.0,1.33188048]
[1673782168661,0.01235032,20731.0,20730.0,1.91233256]
[1673782168916,0.01235032,20731.0,20730.0,1.56894604]
[1673782169175,0.01235032,20731.0,20730.0,1.47577757]
[1673782169440,0.01235032,20731.0,20730.0,1.77577757]
[1673782169963,0.01235032,20731.0,20730.0,1.91980898]
[1673782170223,0.01235032,20731.0,20730.0,1.48778621]
[1673782170505,0.01235032,20731.0,20730.0,2.19528385]
[1673782170781,0.01235032,20731.0,20730.0,1.82685179]
[1673782171091,0.01235032,20731.0,20730.0,2.042854]
[1673782171347,0.01235032,20731.0,20730.0,2.035854]
[1673782171611,0.01235032,20731.0,20730.0,1.81985179]
[1673782171877,0.01369784,20731.0,20730.0,1.41680448]
[1673782172160,0.48069121,20731.0,20730.0,0.574392]
[1673782172677,0.80195321,20731.0,20730.0,0.574392]
[1673782172678,0.01228271,20731.0,20730.0,1.05159369]
[1673782172943,0.01228271,20731.0,20730.0,1.55654402]
[1673782173250,0.01228271,20731.0,20730.0,1.84484643]
[1673782173506,0.01228271,20731.0,20730.0,1.91892766]
[1673782173763,0.01228271,20731.0,20730.0,2.28892108]
[1673782174018,0.01228271,20731.0,20730.0,2.02934422]
[1673782174271,0.01228271,20731.0,20730.0,2.15335383]
[1673782174538,0.01228271,20731.0,20730.0,2.24535383]
[1673782175346,0.01228271,20731.0,20730.0,2.38942108]
[1673782175614,0.01228271,20731.0,20730.0,1.93734422]
[1673782175865,0.01228271,20731.0,20730.0,2.52718987]
[1673782176138,0.01228271,20731.0,20730.0,2.34738354]
[1673782176421,0.01228271,20731.0,20730.0,2.820895]
[1673782176679,0.01228271,20731.0,20730.0,1.89124746]
[1673782176941,0.01228271,20731.0,20730.0,1.67529773]
[1673782177189,0.01228271,20731.0,20730.0,2.05949942]
[1673782177471,0.01228271,20731.0,20730.0,2.36744915]
[1673782177951,0.01228271,20731.0,20730.0,2.36744953]
[1673782178208,0.01228271,20731.0,20730.0,2.01599715]
[1673782178742,0.01228271,20731.0,20730.0,1.53879546]
[1673782179029,0.01228271,20731.0,20730.0,1.53029546]
[1673782179263,0.01228271,20731.0,20730.0,1.43829546]
[1673782179527,0.01228271,20731.0,20730.0,1.53129546]
[1673782179794,0.01228271,20731.0,20730.0,1.53147584]
[1673782180128,0.01228271,20731.0,20730.0,1.53129546]
[1673782180413,0.41040194,20731.0,20730.0,1.057784]
[1673782180663,0.40898681,20731.0,20730.0,1.057784]
[1673782181667,0.41040194,20731.0,20730.0,1.057784]
[1673782181917,0.01228271,20731.0,20730.0,1.057784]
[1673782188290,0.01228271,20731.0,20730.0,1.05785478]
[1673782189582,0.01228271,20731.0,20730.0,1.057784]
[1673782192891,0.01228271,20731.0,20730.0,1.05785997]
[1673782193379,0.01228271,20731.0,20730.0,1.41539273]
[1673782193632,0.01228271,20731.0,20730.0,1.55939538]
[1673782193921,0.01218553,20731.0,20730.0,1.55939538]
[1673782194441,0.01218553,20731.0,20730.0,1.41539273]
[1673782194697,0.01218553,20731.0,20730.0,1.77534511]
[1673782194955,0.01218553,20731.0,20730.0,1.55939538]
[1673782195735,0.01218553,20731.0,20730.0,1.20186262]
[1673782195970,0.01218553,20731.0,20730.0,1.71781235]
[1673782196240,0.01218553,20731.0,20730.0,1.87356666]
[1673782196518,0.01218553,20731.0,20730.0,2.01751213]
[1673782197314,0.01218553,20731.0,20730.0,1.64580809]
[1673782197570,0.01218553,20731.0,20730.0,1.86211476]
[1673782197833,0.01218553,20731.0,20730.0,2.00588495]
[1673782199073,0.01218553,20731.0,20730.0,2.00634974]
[1673782199836,0.01218553,20731.0,20730.0,2.12956721]
[1673782200346,0.01218553,20731.0,20730.0,1.98582021]
[1673782200619,0.01218553,20731.0,20730.0,1.84162446]
[1673782200897,0.01218553,20731.0,20730.0,1.56260274]
[1673782201126,0.01218553,20731.0,20730.0,2.03287597]
[1673782201388,0.01165453,20731.0,20730.0,1.74446306]
[1673782201905,0.01165453,20731.0,20730.0,2.03287597]
[1673782202152,0.01165453,20731.0,20730.0,2.33286724]
[1673782202406,0.01165453,20731.0,20730.0,2.04445433]
[1673782202661,0.01165453,20731.0,20730.0,2.33286724]
[1673782202926,0.01165453,20731.0,20730.0,2.11654611]
[1673782203219,0.01165453,20731.0,20730.0,2.49205143]
[1673782204215,0.01165453,20731.0,20730.0,2.5803539]
[1673782204484,0.0319456,20731.0,20730.0,2.79667512]
[1673782204773,0.0319456,20731.0,20730.0,2.49667512]
[1673782205008,0.63284067,20731.0,20730.0,1.20201141]
[1673782205275,0.76337672,20731.0,20730.0,1.057784]
[1673782205539,0.76337672,20731.0,20730.0,0.575392]
[1673782205794,0.76196159,20731.0,20730.0,0.575392]
[1673782206059,1.12321894,20731.0,20730.0,0.575392]
[1673782206321,0.76196159,20731.0,20730.0,0.575392]
[1673782206572,0.76196159,20731.0,20730.0,0.482392]
[1673782206827,0.76296159,20731.0,20730.0,0.562392]
[1673782207111,0.76196159,20731.0,20730.0,0.482392]
[1673782207379,0.76196159,20731.0,20730.0,0.492392]
[1673782208398,0.35462273,20731.0,20730.0,0.01]
[1673782208717,0.98149467,20731.0,20730.0,0.01]
[1673782208917,0.98149467,20731.0,20726.0,0.482462]
[1673782208918,0.48727416,20730.0,20726.0,0.482462]
[1673782209166,0.48727416,20730.0,20725.0,1.85037389]
[1673782209167,0.40609595,20729.0,20725.0,1.85037389]
[1673782209420,0.51340308,20728.0,20725.0,1.85037389]
[1673782209701,0.21537,20727.0,20726.0,0.14422741]
[1673782209940,0.19214108,20728.0,20726.0,0.14422741]
[1673782210193,0.00141513,20728.0,20725.0,1.85037389]
[1673782210443,0.48727416,20730.0,20725.0,1.85037389]
[1673782210693,0.67800011,20730.0,20725.0,1.85037389]
[1673782210992,0.001,20727.0,20725.0,1.36786689]
[1673782211277,0.46284547,20728.0,20726.0,0.48308184]
[1673782211971,0.4642606,20728.0,20726.0,0.48308184]
[1673782212225,0.46284547,20728.0,20726.0,0.48308184]
[1673782213505,0.46284547,20728.0,20726.0,0.48508184]
[1673782214534,0.4642606,20728.0,20726.0,0.48508184]
[1673782214809,0.4642606,20728.0,20725.0,1.19837266]
[1673782215079,0.4642606,20728.0,20725.0,1.55302678]
[1673782215578,0.46284547,20728.0,20725.0,1.55302678]
[1673782215828,0.47884547,20728.0,20726.0,0.005]
[1673782216099,0.46284547,20728.0,20725.0,1.69725419]
[1673782216380,0.46284547,20728.0,20725.0,1.55502678]
[1673782216598,0.39322924,20729.0,20726.0,0.44256818]
[1673782216833,0.39322924,20729.0,20726.0,0.92504918]
[1673782217898,0.40922924,20729.0,20726.0,0.93004918]
[1673782219937,0.40922924,20729.0,20727.0,0.41933016]
[1673782220187,0.41064437,20729.0,20727.0,0.41933016]
[1673782220701,0.40922924,20729.0,20727.0,0.41933016]
[1673782221226,0.48741123,20728.0,20726.0,0.487481]
[1673782221729,0.4859961,20728.0,20726.0,0.482481]
[1673782221975,0.4859961,20728.0,20727.0,0.006]
[1673782222227,0.4859961,20728.0,20726.0,0.482481]
[1673782222478,0.4859961,20728.0,20726.0,0.487481]
[1673782222762,0.4859961,20728.0,20726.0,0.482481]
[1673782222990,0.48741123,20728.0,20726.0,0.482481]
[1673782223238,0.50341123,20728.0,20727.0,0.006]
[1673782223513,0.4859961,20728.0,20726.0,0.482481]
[1673782224129,0.5019961,20728.0,20726.0,0.487481]
[1673782224784,0.5019961,20728.0,20726.0,0.482481]
[1673782225037,0.5019961,20728.0,20727.0,0.006]
[1673782225285,0.4859961,20728.0,20726.0,0.482481]
[1673782225529,0.5019961,20728.0,20726.0,0.487481]
[1673782225791,0.5019961,20728.0,20726.0,0.482481]
[1673782226047,0.5179961,20728.0,20727.0,0.006]
[1673782226316,0.4859961,20728.0,20727.0,0.482462]
[1673782226808,0.5019961,20728.0,20727.0,0.482462]
[1673782227079,0.5019961,20728.0,20726.0,0.487485]
[1673782227325,0.321262,20727.0,20726.0,0.005]
[1673782227819,0.4859961,20728.0,20725.0,0.57165125]
[1673782228084,0.5019961,20728.0,20727.0,0.006]
[1673782228339,0.4859961,20728.0,20725.0,1.06851145]
[1673782228588,0.016,20727.0,20726.0,0.005]
[1673782228866,0.00141513,20727.0,20725.0,0.58601645]
[1673782229131,0.00141513,20727.0,20725.0,0.09115625]
[1673782229365,0.47977048,20726.0,20725.0,0.09115625]
[1673782229888,0.47977048,20726.0,20725.0,0.08915625]
[1673782230781,0.47977048,20726.0,20725.0,0.09115625]
[1673782231043,0.47977048,20726.0,20725.0,0.08915625]
[1673782231301,0.47970759,20726.0,20725.0,0.09115625]
[1673782235899,0.81889189,20726.0,20725.0,0.09115625]
[1673782236151,0.91889189,20726.0,20725.0,0.09115625]
[1673782236403,1.40137689,20726.0,20725.0,0.09115625]
[1673782236650,1.30137689,20726.0,20725.0,0.09091715]
[1673782236947,1.30137689,20726.0,20725.0,0.08891715]
[1673782237150,1.30137689,20726.0,20725.0,0.09091715]
[1673782237397,0.803747,20726.0,20725.0,0.08891715]
[1673782237644,1.19320313,20726.0,20725.0,0.09491715]
[1673782237899,1.17720313,20726.0,20725.0,0.08891715]
[1673782238150,1.19320313,20726.0,20725.0,0.09591715]
[1673782241186,2.30291732,20726.0,20725.0,0.09591715]
[1673782241452,1.33767008,20726.0,20725.0,0.09591715]
[1673782241721,1.19320313,20726.0,20725.0,0.09591715]
[1673782244059,2.15843511,20726.0,20725.0,0.09591715]
[1673782244335,1.82041706,20726.0,20725.0,0.09591715]
[1673782244627,1.67595011,20726.0,20725.0,0.09591715]
[1673782244882,1.82041706,20726.0,20725.0,0.09591715]
[1673782245676,1.67595011,20726.0,20725.0,0.09591715]
[1673782246991,2.03717147,20726.0,20725.0,0.09591715]
[1673782247528,1.82041706,20726.0,20725.0,0.09591715]
[1673782248062,2.03717147,20726.0,20725.0,0.09591715]
[1673782248326,1.82041706,20726.0,20725.0,0.09591715]
[1673782248595,2.03717147,20726.0,20725.0,0.09591715]
[1673782249649,2.03702044,20726.0,20725.0,0.09591715]
[1673782251153,1.82026603,20726.0,20725.0,0.09591715]
[1673782251653,1.67595011,20726.0,20725.0,0.09591715]
[1673782252174,1.80426603,20726.0,20725.0,0.08891715]
[1673782252422,1.67595011,20726.0,20725.0,0.09591715]
[1673782252667,1.82026603,20726.0,20725.0,0.09591715]
[1673782253175,1.80426603,20726.0,20725.0,0.08891715]
[1673782253455,1.82026603,20726.0,20725.0,0.09591715]
[1673782253981,2.03702044,20726.0,20725.0,0.09591715]
[1673782255253,2.03843557,20726.0,20725.0,0.09591715]
[1673782255508,2.18312553,20726.0,20725.0,0.09591715]
[1673782255765,1.8096694,20726.0,20725.0,0.09591715]
[1673782256278,2.19442259,20726.0,20725.0,0.09591715]
[1673782256789,2.0439684,20726.0,20725.0,0.09591715]
[1673782257599,1.75496252,20726.0,20725.0,0.09591715]
[1673782257842,2.0439684,20726.0,20725.0,0.09591715]
[1673782258097,1.6825045,20726.0,20725.0,0.09591715]
[1673782260210,1.89931335,20726.0,20725.0,0.09591715]
[1673782260436,1.89789822,20726.0,20725.0,0.09591715]
[1673782261249,2.04255327,20726.0,20725.0,0.09591715]
[1673782261515,2.04232016,20726.0,20725.0,0.09591715]
[1673782261996,1.82579886,20726.0,20725.0,0.09591715]
[1673782262257,2.53499099,20726.0,20725.0,0.09591715]
[1673782262522,1.82579886,20726.0,20725.0,0.09591715]
[1673782263024,2.89622393,20726.0,20725.0,0.09591715]
[1673782263539,2.70494986,20726.0,20725.0,0.09591715]
[1673782263801,3.00494986,20726.0,20725.0,0.09591715]
[1673782264052,2.64510764,20726.0,20725.0,0.09591715]
[1673782264305,3.10694246,20726.0,20725.0,0.09591715]